bitfinex/quotes_SOLUSD_20241208
["timestamp","ask_amount","ask_price","bid_price","bid_amount"]
[1733655810330,49.73001465,235.16,235.15,0.493298]
[1733655811451,55.42091543,235.16,235.15,0.493298]
[1733655813557,25.95313065,235.16,235.15,0.493298]
[1733655813956,5.95313065,235.16,235.15,0.493298]
[1733655814266,1.68606144,235.2,235.15,0.493298]
[1733655814267,5.95313065,235.19,235.15,0.493298]
[1733655815664,20.0,235.16,235.15,0.493298]
[1733655826238,25.95313065,235.16,235.15,0.493298]
[1733655827066,49.73001465,235.16,235.15,0.493298]
[1733655827251,20.0,235.12,235.06,1.5783]
[1733655827570,20.0,235.08,235.06,1.5783]
[1733655830166,21.74497318,235.13,235.06,1.5783]
[1733655830370,20.0,235.13,235.06,1.5783]
[1733655833295,25.95313065,235.13,235.06,1.5783]
[1733655834271,5.95313065,235.12,235.06,1.5783]
[1733655834571,20.0,235.09,235.06,1.5783]
[1733655845259,20.0,235.13,235.06,1.5783]
[1733655848086,23.776884,235.19,235.06,1.5783]
[1733655848295,23.776884,235.21,235.06,1.5783]
[1733655848488,23.776884,235.18,235.06,1.5783]
[1733655848976,29.46778478,235.2,235.06,1.5783]
[1733655849573,20.0,235.17,235.06,1.5783]
[1733655851288,29.46778478,235.2,235.06,1.5783]
[1733655851475,6.37241769,235.21,235.06,1.5783]
[1733655851670,4.62238129,235.21,235.07,6.6406]
[1733655851879,5.69090078,235.24,235.08,1.6201]
[1733655852079,5.69090078,235.24,235.1,1.6201]
[1733655852496,5.69090078,235.24,235.11,6.6406]
[1733655852668,5.69090078,235.24,235.12,1.6201]
[1733655852990,5.69090078,235.32,235.12,1.6201]
[1733655853369,7.42643462,235.32,235.12,1.6201]
[1733655853571,1.48176296,235.31,235.12,1.6201]
[1733655853786,20.0,235.28,235.12,1.6201]
[1733655854385,20.0,235.25,235.12,1.6201]
[1733655855110,20.0,235.23,235.12,1.6201]
[1733655855400,20.0,235.22,235.12,1.6201]
[1733655857673,20.0,235.21,235.12,1.6201]
[1733655862777,5.95352936,235.24,235.12,1.6201]
[1733655864074,20.0,235.21,235.12,1.6201]
[1733655864507,5.95352936,235.24,235.14,6.2773]
[1733655864684,5.95352936,235.24,235.15,1.6663]
[1733655865192,5.95352936,235.29,235.15,1.6663]
[1733655866103,20.0,235.26,235.15,1.6663]
[1733655866987,25.95352936,235.26,235.15,1.6663]
[1733655867404,20.0,235.22,235.15,1.6663]
[1733655867708,25.95352936,235.22,235.15,1.6663]
[1733655871224,20.0,235.18,235.15,1.6663]
[1733655871714,25.95352936,235.18,235.15,1.6663]
[1733655873289,20.0,235.23,235.15,1.6663]
[1733655873890,25.95352936,235.23,235.15,1.6663]
[1733655874381,5.95352936,235.22,235.15,1.6663]
[1733655874589,20.0,235.19,235.15,1.6663]
[1733655883288,5.95352936,235.22,235.15,1.6663]
[1733655884622,20.0,235.19,235.15,1.6663]
[1733655884828,20.0,235.22,235.15,1.6663]
[1733655888206,20.0,235.22,235.16,6.0781]
[1733655888521,20.0,235.26,235.16,6.0781]
[1733655889032,4.20991924,235.28,235.16,6.0781]
[1733655889909,10.1634486,235.28,235.16,6.0781]
[1733655890446,20.0,235.25,235.16,6.0781]
[1733655898935,20.0,235.21,235.16,6.0781]
[1733655901220,25.95352936,235.21,235.16,6.0781]
[1733655902642,25.95352936,235.21,235.15,1.6663]
[1733655902847,20.0,235.23,235.15,1.6663]
[1733655904033,4.36577573,235.25,235.15,1.6663]
[1733655904240,20.0,235.24,235.15,1.6663]
[1733655906037,4.36577573,235.25,235.15,1.6663]
[1733655906240,20.0,235.26,235.15,1.6663]
[1733655907222,5.95352936,235.26,235.15,1.6663]
[1733655907638,20.0,235.23,235.15,1.6663]
[1733655911032,20.0,235.2,235.15,1.6663]
[1733655912537,20.0,235.17,235.15,1.6663]
[1733655913433,25.95352936,235.17,235.15,1.6663]
[1733655914759,25.95352936,235.17,235.11,6.3976]
[1733655916246,10.05667651,235.24,235.11,6.3976]
[1733655916247,20.0,235.19,235.11,6.3976]
[1733655916439,20.0,235.15,235.11,6.3976]
[1733655917146,20.0,235.17,235.11,6.3976]
[1733655922339,20.0,235.13,235.09,1.6197]
[1733655923753,43.776884,235.2,235.09,1.6197]
[1733655923947,23.776884,235.19,235.09,1.6197]
[1733655924159,20.0,235.16,235.09,1.6197]
[1733655924678,20.0,235.2,235.09,1.6197]
[1733655924884,20.0,235.16,235.09,1.6197]
[1733655925535,20.0,235.2,235.09,1.6197]
[1733655925739,20.0,235.16,235.09,1.6197]
[1733655932484,11.72602754,235.24,235.09,1.6197]
[1733655932485,11.72602754,235.24,235.1,6.08]
[1733655932772,16.01020587,235.24,235.1,6.08]
[1733655932978,16.01020587,235.24,235.11,1.6065]
[1733655933568,5.95352936,235.23,235.11,1.6065]
[1733655934354,20.0,235.2,235.11,1.6065]
[1733655937376,5.95352936,235.2,235.11,1.6065]
[1733655937591,20.0,235.17,235.11,1.6065]
[1733655942788,10.05667651,235.24,235.11,1.6065]
[1733655942789,20.0,235.21,235.11,1.6065]
[1733655942979,20.0,235.19,235.11,1.6065]
[1733655951072,23.776884,235.18,235.11,1.6065]
[1733655955804,24.36577573,235.24,235.11,1.6065]
[1733655956103,23.776884,235.23,235.11,1.6065]
[1733655956978,23.776884,235.23,235.12,6.1152]
[1733655957175,23.776884,235.23,235.13,1.5313]
[1733655959605,20.0,235.24,235.15,1.5313]
[1733655961207,23.776884,235.23,235.15,1.5313]
[1733655967603,20.0,235.24,235.15,1.5313]
[1733655967809,20.0,235.29,235.15,1.5313]
[1733655968186,24.36577573,235.29,235.15,1.5313]
[1733655968706,4.36577573,235.29,235.17,1.5313]
[1733655968919,5.95352936,235.34,235.16,6.1152]
[1733655968920,5.95352936,235.34,235.19,1.5313]
[1733655970309,23.776884,235.33,235.19,1.5313]
[1733655970511,4.36577573,235.36,235.21,1.5313]
[1733655971991,23.776884,235.35,235.21,1.5313]
[1733655973518,4.36577573,235.36,235.22,6.1152]
[1733655973699,30.31930509,235.36,235.23,1.5313]
[1733655974083,20.0,235.32,235.23,1.5313]
[1733655975086,23.776884,235.31,235.23,1.5313]
[1733655978812,20.0,235.28,235.23,1.5313]
[1733655978993,23.776884,235.27,235.23,1.5313]
[1733655979396,20.0,235.28,235.23,1.5313]
[1733655979615,23.776884,235.27,235.23,1.5313]
[1733655980002,5.69090078,235.35,235.23,1.5313]
[1733655981215,4.36577573,235.36,235.23,1.5313]
[1733655981420,23.776884,235.35,235.23,1.5313]
[1733655982127,23.776884,235.31,235.23,1.5313]
[1733655984808,20.0,235.34,235.23,1.5313]
[1733655986142,23.776884,235.33,235.23,1.5313]
[1733655994301,20.0,235.3,235.23,1.5313]
[1733655994725,23.776884,235.29,235.23,1.5313]
[1733655996010,0.74381924,235.28,235.23,1.5313]
[1733656000052,23.776884,235.27,235.23,1.5313]
[1733656000346,0.74381924,235.26,235.23,1.5313]
[1733656002241,0.74381924,235.29,235.23,1.5313]
[1733656002430,0.74381924,235.35,235.23,1.5313]
[1733656002627,10.96418546,235.35,235.23,1.5313]
[1733656002834,5.85459049,235.34,235.23,1.5313]
[1733656003023,0.74381924,235.33,235.23,1.5313]
[1733656003433,23.776884,235.32,235.23,1.5313]
[1733656003620,23.776884,235.3,235.23,1.5313]
[1733656003822,0.74381924,235.29,235.23,1.5313]
[1733656004120,0.74381924,235.31,235.23,1.5313]
[1733656004321,23.776884,235.3,235.23,1.5313]
[1733656004548,0.74381924,235.29,235.23,1.5313]
[1733656004855,23.776884,235.31,235.23,1.5313]
[1733656005070,0.74381924,235.3,235.23,1.5313]
[1733656005253,0.74381924,235.32,235.23,1.5313]
[1733656005452,23.776884,235.31,235.23,1.5313]
[1733656005740,0.74381924,235.3,235.23,1.5313]
[1733656005957,23.776884,235.31,235.23,1.5313]
[1733656006131,0.74381924,235.3,235.23,1.5313]
[1733656006452,23.776884,235.31,235.23,1.5313]
[1733656006653,0.74381924,235.3,235.23,1.5313]
[1733656006869,23.776884,235.31,235.23,1.5313]
[1733656007029,0.74381924,235.3,235.23,1.5313]
[1733656007219,0.74381924,235.32,235.23,1.5313]
[1733656007424,23.776884,235.31,235.23,1.5313]
[1733656007643,0.74381924,235.3,235.23,1.5313]
[1733656007850,23.776884,235.31,235.23,1.5313]
[1733656008050,0.74381924,235.3,235.23,1.5313]
[1733656008348,23.776884,235.31,235.23,1.5313]
[1733656008647,0.74381924,235.3,235.23,1.5313]
[1733656008846,23.776884,235.31,235.23,1.5313]
[1733656009027,0.74381924,235.3,235.23,1.5313]
[1733656009227,0.74381924,235.32,235.23,1.5313]
[1733656009446,23.776884,235.31,235.23,1.5313]
[1733656009632,0.74381924,235.3,235.23,1.5313]
[1733656009952,23.776884,235.31,235.23,1.5313]
[1733656010157,0.74381924,235.3,235.23,1.5313]
[1733656010323,23.776884,235.31,235.23,1.5313]
[1733656010523,0.74381924,235.3,235.23,1.5313]
[1733656010743,0.74381924,235.32,235.23,1.5313]
[1733656010942,23.776884,235.31,235.23,1.5313]
[1733656011142,0.74381924,235.3,235.23,1.5313]
[1733656011425,89.66790523,235.46,235.23,1.5313]
[1733656011426,0.74381924,235.32,235.23,1.5313]
[1733656011629,0.74381924,235.37,235.23,1.5313]
[1733656012553,20.0,235.35,235.25,1.6138]
[1733656012751,0.74381924,235.34,235.25,1.6138]
[1733656013155,20.0,235.36,235.25,1.6138]
[1733656013366,0.74381924,235.35,235.25,1.6138]
[1733656014840,23.776884,235.34,235.25,1.6138]
[1733656015039,0.74381924,235.33,235.25,1.6138]
[1733656017138,23.776884,235.32,235.25,1.6138]
[1733656017338,23.776884,235.3,235.25,1.6138]
[1733656017568,0.74381924,235.29,235.25,1.6138]
[1733656018060,0.74381924,235.35,235.25,1.6138]
[1733656018362,23.776884,235.34,235.25,1.6138]
[1733656018569,23.776884,235.3,235.25,1.6138]
[1733656018869,0.74381924,235.29,235.25,1.6138]
[1733656019671,0.74381924,235.3,235.25,1.6138]
[1733656020173,24.52070324,235.35,235.25,1.6138]
[1733656033268,20.0,235.32,235.25,1.6138]
[1733656033596,0.74381924,235.31,235.25,1.6138]
[1733656039493,23.776884,235.33,235.25,1.6138]
[1733656039696,0.74381924,235.32,235.25,1.6138]
[1733656042077,20.0,235.36,235.25,1.6138]
[1733656042382,24.52070324,235.35,235.25,1.6138]
[1733656049886,0.74381924,235.35,235.25,1.6138]
[1733656050206,24.52070324,235.37,235.25,1.6138]
[1733656050781,0.74381924,235.37,235.28,6.2054]
[1733656050988,0.74381924,235.4,235.29,1.6026]
[1733656051385,0.74381924,235.41,235.29,1.6026]
[1733656052182,23.776884,235.4,235.29,1.6026]
[1733656052495,0.74381924,235.39,235.29,1.6026]
[1733656056091,0.74381924,235.39,235.31,1.6026]
[1733656056287,0.74381924,235.4,235.31,1.6026]
[1733656061792,20.0,235.36,235.31,1.6026]
[1733656061996,0.74381924,235.35,235.31,1.6026]
[1733656063079,23.776884,235.34,235.31,1.6026]
[1733656063279,20.0,235.32,235.31,1.6026]
[1733656063715,0.74381924,235.33,235.31,1.6026]
[1733656065228,0.74381924,235.37,235.31,1.6026]
[1733656067889,0.74381924,235.33,235.26,1.5155]
[1733656072321,20.74381924,235.36,235.26,1.5155]
[1733656074708,23.776884,235.35,235.26,1.5155]
[1733656074901,23.776884,235.33,235.26,1.5155]
[1733656075102,20.74381924,235.32,235.26,1.5155]
[1733656077651,23.776884,235.31,235.26,1.5155]
[1733656077927,0.74381924,235.3,235.26,1.5155]
[1733656081533,20.0,235.26,235.21,1.5057]
[1733656081827,0.74381924,235.25,235.21,1.5057]
[1733656083231,0.74381924,235.28,235.21,1.5057]
[1733656087440,0.8885468,235.34,235.21,1.5057]
[1733656088915,23.776884,235.33,235.21,1.5057]
[1733656089228,0.74381924,235.32,235.21,1.5057]
[1733656089432,23.776884,235.31,235.21,1.5057]
[1733656089614,0.74381924,235.3,235.21,1.5057]
[1733656089932,23.776884,235.31,235.21,1.5057]
[1733656090134,0.74381924,235.3,235.21,1.5057]
[1733656091724,20.0,235.31,235.21,1.5057]
[1733656091930,0.74381924,235.3,235.21,1.5057]
[1733656096313,23.776884,235.29,235.21,1.5057]
[1733656097513,23.776884,235.27,235.21,1.5057]
[1733656097916,23.776884,235.29,235.21,1.5057]
[1733656098215,23.776884,235.27,235.21,1.5057]
[1733656099221,0.14472756,235.24,235.21,1.5057]
[1733656104955,0.8885468,235.24,235.21,1.5057]
[1733656109650,0.14472756,235.24,235.21,1.5057]
[1733656110829,23.776884,235.23,235.21,1.5057]
[1733656112350,24.52070324,235.22,235.21,1.5057]
[1733656112551,23.776884,235.22,235.21,1.5057]
[1733656118064,0.14472756,235.24,235.21,1.5057]
[1733656123576,0.14472756,235.24,235.22,6.4253]
[1733656137156,0.14472756,235.24,235.15,1.6596]
[1733656137988,23.776884,235.23,235.15,1.6596]
[1733656138160,0.74381924,235.22,235.15,1.6596]
[1733656139987,23.776884,235.21,235.15,1.6596]
[1733656140986,23.776884,235.23,235.15,1.6596]
[1733656141184,23.776884,235.21,235.15,1.6596]
[1733656141567,23.776884,235.19,235.11,0.6377818]
[1733656141772,23.776884,235.19,235.1,1.6596]
[1733656142171,23.776884,235.17,235.1,1.6596]
[1733656146085,23.776884,235.15,235.1,1.6596]
[1733656147997,23.776884,235.13,235.1,1.6596]
[1733656148158,23.776884,235.15,235.1,1.6596]
[1733656153571,0.8885468,235.24,235.1,1.6596]
[1733656153974,0.14472756,235.24,235.1,1.6596]
[1733656154270,0.8885468,235.24,235.1,1.6596]
[1733656154469,0.14472756,235.24,235.1,1.6596]
[1733656154780,0.8885468,235.24,235.1,1.6596]
[1733656154962,0.14472756,235.24,235.1,1.6596]
[1733656155167,0.8885468,235.24,235.1,1.6596]
[1733656156274,23.776884,235.23,235.1,1.6596]
[1733656156592,23.776884,235.21,235.1,1.6596]
[1733656156797,23.776884,235.19,235.1,1.6596]
[1733656156995,0.74381924,235.18,235.1,1.6596]
[1733656157379,23.776884,235.19,235.1,1.6596]
[1733656159212,0.14472756,235.13,235.1,1.6596]
[1733656164889,0.14472756,235.13,235.1,2.29746176]
[1733656166224,0.14472756,235.13,235.11,0.25098]
[1733656166405,0.14472756,235.13,235.12,0.63777016]
[1733656166719,0.14472756,235.13,235.12,20.63777016]
[1733656169121,0.14472756,235.13,235.12,20.76326016]
[1733656169315,0.14472756,235.13,235.12,21.01424016]
[1733656169989,23.776884,235.25,235.13,0.25098]
[1733656170197,23.776884,235.23,235.13,0.25098]
[1733656170613,0.74381924,235.22,235.13,0.25098]
[1733656170810,0.74381924,235.24,235.13,0.25098]
[1733656170992,23.776884,235.23,235.13,0.25098]
[1733656171192,0.74381924,235.22,235.13,0.25098]
[1733656171394,23.776884,235.26,235.13,0.25098]
[1733656171395,23.776884,235.24,235.13,0.25098]
[1733656171594,0.74381924,235.23,235.13,0.25098]
[1733656171810,23.776884,235.26,235.13,0.25098]
[1733656171811,0.74381924,235.25,235.13,0.25098]
[1733656172128,23.776884,235.24,235.13,0.25098]
[1733656172424,0.74381924,235.23,235.13,0.25098]
[1733656173419,23.776884,235.22,235.12,20.63777016]
[1733656177848,0.74381924,235.26,235.12,20.63777016]
[1733656178143,23.776884,235.25,235.12,20.63777016]
[1733656178449,23.776884,235.23,235.12,20.63777016]
[1733656178823,23.776884,235.25,235.12,20.63777016]
[1733656179036,23.776884,235.23,235.12,20.63777016]
[1733656179617,23.776884,235.25,235.12,20.63777016]
[1733656179824,23.776884,235.23,235.12,20.63777016]
[1733656180344,23.776884,235.25,235.13,1.6258]
[1733656180641,23.776884,235.23,235.13,1.6258]
[1733656181472,23.776884,235.25,235.15,6.3081]
[1733656181755,0.74381924,235.27,235.16,0.25098]
[1733656181935,0.74381924,235.3,235.16,0.25098]
[1733656182140,0.74381924,235.3,235.17,1.6258]
[1733656183063,23.776884,235.29,235.17,1.6258]
[1733656183350,23.776884,235.27,235.17,1.6258]
[1733656183950,23.776884,235.29,235.17,1.6258]
[1733656184149,23.776884,235.27,235.17,1.6258]
[1733656184935,23.776884,235.29,235.17,1.6258]
[1733656185259,23.776884,235.27,235.17,1.6258]
[1733656185834,23.776884,235.29,235.17,1.6258]
[1733656186033,23.776884,235.27,235.17,1.6258]
[1733656186448,23.776884,235.29,235.18,0.25098]
[1733656186733,24.52070324,235.3,235.18,20.25098]
[1733656187732,20.0,235.31,235.19,0.12549]
[1733656187931,0.74381924,235.3,235.19,0.12549]
[1733656188242,23.776884,235.32,235.19,0.12549]
[1733656188453,0.74381924,235.31,235.19,0.12549]
[1733656189383,24.52070324,235.32,235.19,0.12549]
[1733656189880,24.52070324,235.32,235.2,8.2604]
[1733656190280,0.74381924,235.32,235.21,0.37647]
[1733656190462,23.776884,235.35,235.21,0.37647]
[1733656190664,0.74381924,235.34,235.21,0.37647]
[1733656190867,0.74381924,235.36,235.21,0.37647]
[1733656191185,0.74381924,235.36,235.22,1.6119]
[1733656191953,23.776884,235.35,235.22,1.6119]
[1733656192153,0.74381924,235.34,235.22,1.6119]
[1733656196577,0.74381924,235.34,235.23,20.0]
[1733656199464,0.74381924,235.36,235.25,7.7954]
[1733656199666,0.74381924,235.38,235.25,7.7954]
[1733656199868,0.74381924,235.41,235.25,7.7954]
[1733656201171,23.776884,235.4,235.25,7.7954]
[1733656201466,23.776884,235.38,235.25,7.7954]
[1733656201686,0.74381924,235.37,235.25,7.7954]
[1733656201872,0.74381924,235.37,235.26,0.12549]
[1733656205903,0.74381924,235.37,235.25,0.12549]
[1733656208198,0.74381924,235.37,235.25,20.12549]
[1733656208900,0.74381924,235.37,235.26,7.7244]
[1733656212818,0.79670264,235.39,235.26,7.7244]
[1733656213896,0.79670264,235.39,235.26,12.7244]
[1733656215987,0.79670264,235.39,235.26,7.7244]
[1733656227630,0.79670264,235.39,235.29,20.0]
[1733656232448,23.776884,235.38,235.26,7.7244]
[1733656232663,23.776884,235.35,235.26,7.7244]
[1733656232945,0.7968384,235.34,235.26,7.7244]
[1733656244101,5.0,235.38,235.26,7.7244]
[1733656244394,23.776884,235.36,235.26,7.7244]
[1733656244584,5.0,235.4,235.26,7.7244]
[1733656244796,0.79670194,235.39,235.26,7.7244]
[1733656246013,23.776884,235.38,235.26,7.7244]
[1733656246389,0.79670194,235.39,235.29,20.0]
[1733656250797,23.776884,235.38,235.29,20.0]
[1733656250994,23.776884,235.39,235.29,20.0]
[1733656251198,0.79667629,235.38,235.29,20.0]
[1733656254840,0.79667629,235.38,235.29,21.75128697]
[1733656258603,0.79667629,235.38,235.29,20.0]
[1733656263046,5.0,235.49,235.34,1.6552]
[1733656263357,0.79638997,235.48,235.34,21.6552]
[1733656263959,0.79638997,235.48,235.35,6.6517]
[1733656265037,0.79638997,235.48,235.38,20.0]
[1733656265428,0.12549,235.48,235.38,20.0]
[1733656265629,0.92181961,235.48,235.38,20.0]
[1733656265937,5.0,235.53,235.39,21.6552]
[1733656266143,0.79624589,235.52,235.39,21.6552]
[1733656267662,28.776884,235.51,235.39,21.6552]
[1733656267958,0.79630739,235.5,235.39,21.6552]
[1733656268552,0.12549,235.49,235.39,21.6552]
[1733656269029,23.776884,235.51,235.39,21.6552]
[1733656269342,0.12549,235.5,235.39,21.6552]
[1733656269960,23.776884,235.52,235.39,21.6552]
[1733656270152,0.12549,235.51,235.39,21.6552]
[1733656271244,0.79623234,235.5,235.39,1.6552]
[1733656271562,0.79623234,235.5,235.39,21.6552]
[1733656272030,0.79623234,235.5,235.39,1.6552]
[1733656272230,0.92175392,235.51,235.39,1.6552]
[1733656273150,0.92171655,235.51,235.39,1.6552]
[1733656273334,0.12549,235.53,235.4,6.6517]
[1733656273533,0.92168458,235.53,235.4,6.6517]
[1733656274359,5.0,235.57,235.44,1.6552]
[1733656274554,0.79611577,235.56,235.44,1.6552]
[1733656274750,5.0,235.55,235.44,1.6552]
[1733656274951,0.79612708,235.54,235.44,1.6552]
[1733656275155,5.0,235.55,235.44,1.6552]
[1733656275777,0.12549,235.54,235.44,1.6552]
[1733656276353,23.776884,235.56,235.44,1.6552]
[1733656276552,0.79608251,235.57,235.44,1.6552]
[1733656276747,5.79608251,235.59,235.45,6.6517]
[1733656277540,5.0,235.57,235.45,6.6517]
[1733656277745,0.79607713,235.56,235.45,6.6517]
[1733656277960,0.12549,235.53,235.45,6.6517]
[1733656278191,0.92168805,235.53,235.45,6.6517]
[1733656282397,28.776884,235.52,235.44,1.6552]
[1733656282689,0.12549,235.49,235.44,1.6552]
[1733656282894,0.92180672,235.49,235.44,1.6552]
[1733656283781,0.12549,235.49,235.44,1.6552]
[1733656285876,0.12549,235.49,235.4,6.3281]
[1733656291002,0.12549,235.51,235.41,1.5009]
[1733656291174,5.0,235.54,235.41,1.5009]
[1733656292471,0.79615432,235.53,235.41,1.5009]
[1733656297288,0.12549,235.52,235.41,1.5009]
[1733656297807,5.12549,235.52,235.41,1.5009]
[1733656298014,0.79625703,235.51,235.41,1.5009]
[1733656300525,0.12549,235.5,235.41,1.5009]
[1733656301513,0.12549,235.51,235.41,1.5009]
[1733656301684,23.776884,235.53,235.41,1.5009]
[1733656301887,0.12549,235.53,235.41,1.5009]
[1733656302696,25.0,235.56,235.41,1.5009]
[1733656302989,20.0,235.56,235.43,1.5565]
[1733656303191,25.0,235.56,235.43,1.5565]
[1733656303895,0.12549,235.55,235.43,1.5565]
[1733656304823,0.12549,235.56,235.45,20.0]
[1733656305318,0.12549,235.57,235.46,1.5565]
[1733656305625,23.776884,235.59,235.46,1.5565]
[1733656305787,5.0,235.6,235.47,6.3742]
[1733656305994,0.79597997,235.59,235.47,6.3742]
[1733656306303,5.0,235.62,235.48,1.5565]
[1733656306501,0.79593879,235.61,235.48,1.5565]
[1733656306704,5.0,235.6,235.48,1.5565]
[1733656306897,0.79595409,235.59,235.48,1.5565]
[1733656307102,0.12549,235.59,235.48,1.5565]
[1733656307302,0.92145148,235.59,235.48,1.5565]
[1733656307792,0.12549,235.59,235.48,1.5565]
[1733656308392,0.12549,235.6,235.48,1.5565]
[1733656308588,5.0,235.62,235.48,1.5565]
[1733656309020,5.0,235.62,235.5,20.0]
[1733656309338,0.79589546,235.61,235.5,20.0]
[1733656310016,0.12549,235.6,235.5,20.0]
[1733656310317,0.79596097,235.59,235.48,1.5565]
[1733656311098,0.12549,235.6,235.48,1.5565]
[1733656312791,0.79594741,235.59,235.48,1.5565]
[1733656313920,0.79596888,235.59,235.48,1.5565]
[1733656314503,23.902374,235.57,235.48,1.5565]
[1733656314808,0.79607998,235.56,235.48,1.5565]
[1733656317632,23.902374,235.57,235.48,1.5565]
[1733656317802,0.79606729,235.56,235.48,1.5565]
[1733656318329,0.12549,235.57,235.48,1.5565]
[1733656318526,0.92152052,235.57,235.48,1.5565]
[1733656319040,0.12549,235.57,235.48,1.5565]
[1733656319207,5.0,235.6,235.48,1.5565]
[1733656319412,0.795966,235.59,235.48,1.5565]
[1733656320314,5.0,235.57,235.48,1.5565]
[1733656320517,0.7960789,235.56,235.48,1.5565]
[1733656321506,0.12549,235.54,235.48,1.5565]
[1733656321736,0.92165653,235.54,235.48,1.5565]
[1733656323642,0.12549,235.52,235.48,1.5565]
[1733656323857,0.92173752,235.52,235.48,3.679822]
[1733656327633,5.0,235.51,235.48,2.123322]
[1733656327859,0.79630537,235.5,235.48,2.123322]
[1733656331938,0.12549,235.5,235.48,2.123322]
[1733656332456,0.92174031,235.5,235.48,2.123322]
[1733656333843,28.902374,235.49,235.48,2.123322]
[1733656334348,0.12549,235.49,235.48,2.123322]
[1733656334534,0.12549,235.5,235.48,2.123322]
[1733656334743,0.9217514,235.5,235.48,2.123322]
[1733656335140,0.12549,235.5,235.48,2.123322]
[1733656337272,5.0,235.56,235.48,2.123322]
[1733656337585,5.0,235.56,235.49,1.6431]
[1733656338465,0.79609723,235.55,235.49,1.6431]
[1733656340580,5.0,235.56,235.49,1.6431]
[1733656341561,23.902374,235.57,235.49,1.6431]
[1733656342384,0.12549,235.57,235.49,1.6431]
[1733656343266,24.57291321,235.59,235.49,1.6431]
[1733656343469,0.12549,235.58,235.49,1.6431]
[1733656344383,5.0,235.61,235.49,1.6431]
[1733656344565,23.902374,235.6,235.49,1.6431]
[1733656344956,5.0,235.61,235.49,1.6431]
[1733656345458,25.0,235.61,235.49,1.6431]
[1733656346288,5.0,235.61,235.49,1.6431]
[1733656346585,25.0,235.61,235.49,1.6431]
[1733656347097,5.0,235.61,235.49,1.6431]
[1733656347386,25.0,235.61,235.49,1.6431]
[1733656348179,5.0,235.61,235.49,1.6431]
[1733656348382,5.0,235.63,235.49,1.6431]
[1733656348589,0.92135677,235.62,235.49,1.6431]
[1733656349780,5.0,235.61,235.49,1.6431]
[1733656349982,5.0,235.57,235.49,1.6431]
[1733656350158,5.0,235.55,235.49,1.6431]
[1733656350765,0.12549,235.56,235.49,1.6431]
[1733656351182,5.0,235.57,235.49,1.6431]
[1733656354488,23.902374,235.58,235.49,1.6431]
[1733656354659,5.0,235.57,235.49,1.6431]
[1733656356462,0.79603947,235.56,235.49,1.6431]
[1733656360502,5.0,235.55,235.49,1.6431]
[1733656360704,0.79614,235.54,235.49,1.6431]
[1733656364307,5.0,235.55,235.49,1.6431]
[1733656364485,0.92161206,235.54,235.49,1.6431]
[1733656364687,0.12549,235.54,235.49,1.6431]
[1733656364889,5.12549,235.54,235.49,1.6431]
[1733656365513,23.902374,235.56,235.49,1.6431]
[1733656365805,0.12549,235.57,235.49,1.6431]
[1733656365975,24.57288803,235.58,235.49,1.6431]
[1733656366172,5.0,235.59,235.49,1.6431]
[1733656366409,5.0,235.61,235.49,1.6431]
[1733656366610,5.0,235.59,235.49,1.6431]
[1733656367502,0.12549,235.6,235.49,1.6431]
[1733656367920,5.0,235.61,235.49,1.6431]
[1733656369395,0.79590706,235.6,235.49,1.6431]
[1733656369799,5.0,235.59,235.49,1.6431]
[1733656370109,5.0,235.57,235.49,1.6431]
[1733656370581,0.7960548,235.56,235.49,1.6431]
[1733656370781,5.79607296,235.57,235.49,1.6431]
[1733656372096,5.0,235.55,235.49,1.6431]
[1733656372297,0.79612462,235.54,235.49,1.6431]